Cogmind - Beta 17 @@@ ROGUE MODE // 2026.07.17 @ 19:35:15 Player: Blaf Result: Destroyed by G-47 Trooper with Particle Gun Performance ------------- Evolutions (2) 1000 Regions Visited (3) 600 Robots Destroyed (42) 210 Value Destroyed (743) 743 Prototype IDs (0) 0 Alien Tech Used (0) 0 Bonus (0) 0 TOTAL SCORE: 2553 Bonus ------- None Cogmind --------- Core Integrity 0/550 Matter 189/300 Energy 85/100 System Corruption 1% Temperature Cool (18) Movement Rolling (95) Ox1 Location -8/Materials Parts ------- > --- POWER (1) -------- (None) > --- PROPULSION (3) --- Wheel > --- UTILITY (3) ------ Medium Storage Unit > --- WEAPON (4) ------- Assault Rifle > --- INVENTORY (10) --- Improved Ion Engine Aluminum Leg Machine Analyzer Visual Processing Unit Sensor Array Improved Signal Interpreter Terrain Scanner Hardened Light Armor Plating Peak State ------------ > --- POWER ------------ Ion Engine > --- PROPULSION ------- Aluminum Leg Aluminum Leg Aluminum Leg > --- UTILITY ---------- Medium Storage Unit Targeting Computer Improved Light Armor Plating > --- WEAPON ----------- Light Assault Rifle Light Assault Rifle Heavy Assault Rifle Mini Grenade Launcher > --- INVENTORY -------- Improved Ion Engine Wheel Visual Processing Unit Sensor Array Improved Signal Interpreter Terrain Scanner Hardened Light Armor Plating [Rating: 16] Favorites ----------- Power Ion Engine Engine Ion Engine Propulsion Aluminum Leg Leg Aluminum Leg Wheel Wheel Flight Unit Flight Unit Utility Medium Storage Unit Storage Medium Storage Unit Processor Targeting Computer Protection Light Armor Plating Weapon Light Assault Rifle Energy Gun Small Laser Ballistic Gun Light Assault Rifle Ballistic Cannon Light Cannon Launcher Mini Grenade Launcher Build | -11 -10 -9 -8 ------- Run | Yrd Mat Mat Mat Slots Evolved 4 | . . 2 2 Power . | . . . . Propulsion 1 | . . . 1 Utility 1 | . . 1 . Weapon 2 | . . 1 1 Parts Attached 31 | 6 8 8 9 Power 3 | 1 1 1 . Engine 3 | 1 1 1 . Core . | . . . . Reactor . | . . . . Propulsion 10 | 2 2 1 5 Treads . | . . . . Leg 6 | 2 2 1 1 Wheel 1 | . . . 1 Hover . | . . . . Flight 3 | . . . 3 Utility 6 | 1 2 2 1 Device . | . . . . Storage 2 | 1 1 . . Processor 1 | . 1 . . Hackware . | . . . . Protection 3 | . . 2 1 Artifact . | . . . . Weapon 12 | 2 3 4 3 Energy Gun 1 | . . 1 . Energy Cannon . | . . . . Ballistic Gun 9 | 2 3 3 1 Ballistic Cannon 1 | . . . 1 Launcher 1 | . . . 1 Special Weapon . | . . . . Impact Weapon . | . . . . Slashing Weapon . | . . . . Piercing Weapon . | . . . . Special Melee Weapon . | . . . . Unidentified Prototypes . | . . . . Parts Lost 18 | . 5 1 12 Power 3 | . 1 1 1 Propulsion 5 | . 1 . 4 Utility 2 | . . . 2 Weapon 8 | . 3 . 5 Highest Loss Streak 12 | . 5 1 12 To Critical Strikes 1 | . . . 1 Average Backups 8 | 1 7 9 7 Power . | . 1 . 1 Propulsion 2 | . 2 2 1 Utility 3 | . 3 4 5 Weapon . | . . 1 . Tool/Special . | . . . . Unused Backups 11 | . 1 3 7 Power 1 | . . . 1 Propulsion 1 | . . 1 . Utility 9 | . 1 2 6 Weapon . | . . . . Tool/Special . | . . . . Average Slot Usage (%) 95 | . 95 98 84 Engine 12 | . 13 11 7 Leg 25 | . 27 22 22 Storage 12 | . 14 11 9 Processor 11 | . 11 11 7 Protection 4 | . . 11 8 Ballistic Gun 28 | . 27 30 21 Peak Build Rating 16 | 6 8 12 16 Average Rating 8 | 4 6 10 13 On Entrance 6 | . 6 7 12 Avg Prop Armor Cover (%) 8 | . 8 . . Naked Turns . | . . . . Heaviest Build 26 | 13 23 25 26 Greatest Support 30 | 20 20 20 30 Greatest Overweight (x) 4 | . 3 1 4 Average Overweight (x) . | . . . . Largest Inventory Capacity 10 | 8 10 10 10 Average Capacity 9 | 7 9 10 10 Most Carried 10 | 3 10 10 10 Average Carried 8 | 1 7 9 7 Final Capacity 10 | 8 10 10 10 Final Carried 9 | 3 9 8 8 Class Distribution -------------------- 64% | Mutant 32% | Scavenger-Gunner 3% | Gunner Dominant Class ---------------- Mutant | -10/Materials Scavenger-Gunner | -9/Materials Scavenger-Gunner | -8/Materials Resources | -11 -10 -9 -8 ----------- Run | Yrd Mat Mat Mat Matter Collected 1048 | 183 616 226 23 Remotely . | . . . . Salvage Created 1122 | . 420 567 135 Parts 90 | . 32 43 15 Haulers Intercepted 1 | . 1 . . Recyclers Shooed . | . . . . Parts Field Recycled . | . . . . Retrieved Matter . | . . . . Parts Self-Destructed . | . . . . Prevented . | . . . . Parts Restored . | . . . . Kills | -11 -10 -9 -8 ------- Run | Yrd Mat Mat Mat Combat Hostiles Destroyed 31 | . 13 12 6 Guns 30 | . 13 12 5 AOE 1 | . . . 1 Classes Destroyed 8 | . 5 2 1 Worker 4 | . 1 3 . Builder 1 | . . . 1 Hauler 1 | . 1 . . Recycler 1 | . . 1 . Watcher 4 | . 2 2 . Swarmer 20 | . 9 7 4 Grunt 6 | . 4 1 1 Sentry 5 | . . 4 1 Best Kill Streak 7 | . 3 6 7 Combat Bots Only 6 | . 3 5 6 Max Kills in Single Turn 3 | . 1 3 2 Gunslinging 2 | . . 2 1 Exploded 1 | . . . 1 Melee . | . . . . Uniques/NPCs Destroyed . | . . . . Combat | -11 -10 -9 -8 -------- Run | Yrd Mat Mat Mat Hostile Shots Fired 281 | . 95 41 145 Missed 72 | . 22 10 40 Hits 209 | . 73 31 105 Projectile 209 | . 73 31 105 Critical Strikes 6 | . 1 2 3 Damage Taken 2599 | . 758 410 1431 Core 742 | . 146 32 564 Absorbed by Shields . | . . . . Regen/Repaired (Parts) 46 | . 46 . . Core Remaining (%) 77 | 100 41 92 . Volleys Fired 135 | . 88 31 16 Largest 3 | . 2 3 3 Hottest 80 | . 40 80 70 Shots Fired 282 | . 155 93 34 Gun 275 | . 155 93 27 Cannon 2 | . . . 2 Launcher 5 | . . . 5 Special . | . . . . Kinetic 274 | . 155 90 29 Thermal 3 | . . 3 . Explosive 5 | . . . 5 Electromagnetic . | . . . . Robot Hit Streak 11 | . 11 9 7 Robot Miss Streak 5 | . 4 5 5 Penetration Max . | . . . . Secondary Targets 9 | . 2 4 3 Max Gunslinging Chain 2 | . 1 2 1 Shots Hit Robots 144 | . 60 64 20 Core Hits 67 | . 25 28 14 Critical Kills . | . . . . Critical Parts Destroyed 1 | . . 1 . Critical Strikes 1 | . . 1 . Destroy 1 | . . 1 . Melee Attacks . | . . . . Impact . | . . . . Slashing . | . . . . Piercing . | . . . . Sneak Attacks . | . . . . Combat Hostiles . | . . . . Follow-up Attacks . | . . . . Damage Inflicted 1898 | . 629 658 611 Guns 1419 | . 629 658 132 Cannons 36 | . . . 36 Explosions 443 | . . . 443 Melee . | . . . . Ramming . | . . . . Kinetic 1433 | . 629 636 168 Thermal 22 | . . 22 . Explosive 443 | . . . 443 Electromagnetic . | . . . . Impact . | . . . . Slashing . | . . . . Piercing . | . . . . Highest Corruption 4 | . 4 . 1 Average Corruption 3 | . 3 . 1 Corruption Purged . | . . . . Corruption Blocked . | . . . . Effects 34 | . 34 . . Message Errors 7 | . 7 . . Matter Fused 12 | . 12 . . Heat Flow Errors 3 | . 3 . . Energy Discharges 3 | . 3 . . Parts Rejected 1 | . 1 . . Parts Fused 1 | . 1 . . Data Loss (minor) 6 | . 6 . . Misfires 1 | . 1 . . Overload Shots . | . . . . Overflow Damage 5 | . . . 5 Projectiles . | . . . . Explosions 5 | . . . 5 Melee . | . . . . Knockbacks 1 | . . . 1 Impact . | . . . . Kinetic 1 | . . . 1 Secondary . | . . . . Self-Inflicted Damage 57 | . . . 57 Shots 2 | . . . 2 Rammed . | . . . . Targets Rammed . | . . . . Kicked . | . . . . Crushed . | . . . . Highest Temperature 190 | . 190 116 42 Average Temperature 36 | . 57 32 17 Received Heat Transfer 1008 | . 318 132 558 Siege Activations . | . . . . Martial Activations . | . . . . Shielding Activations . | . . . . Robots Disrupted . | . . . . Combat Hostiles . | . . . . Robots Corrupted . | . . . . Combat Hostiles . | . . . . Parts Fried . | . . . . Impact Corruptions . | . . . . Robots Melted . | . . . . Combat Hostiles . | . . . . Parts Melted . | . . . . Heat Transferred 50 | . . 50 . Parts Sabotaged . | . . . . Parts Stolen . | . . . . Parts Stripped . | . . . . Power Chain Reactions . | . . . . Alert | -11 -10 -9 -8 ------- Run | Yrd Mat Mat Mat Maximum Alert Level . | . . . . Low Security (%) 100 | 100 100 100 100 Level 1 . | . . . . Level 2 . | . . . . Level 3 . | . . . . Level 4 . | . . . . Level 5 . | . . . . High Security . | . . . . Max Security . | . . . . Peak Influence 168 | . 118 114 168 Initial 20 | . . . 20 Average 29 | . 27 33 39 Influence Increases 944 | . 366 349 229 Destroy 0b10 Robot/C 620 | . 260 240 120 Destroy 0b10 Robot/NC 55 | . 20 30 5 Destroy Leader 150 | . 56 74 20 Successful Hack 5 | . . 5 . Disable Machine 30 | . 15 . 15 Destroy Structure 24 | . . . 24 Lose Combat Pursuer 60 | . 15 . 45 Influence Decreases 855 | . 366 300 189 Entered New Map 29 | . . . 29 Time Decay 675 | . 335 290 50 Lost Part 151 | . 31 10 110 Squads Dispatched 5 | . 3 1 1 Investigation 3 | . 3 . . Extermination . | . . . . Reinforcement 2 | . . 1 1 Assault . | . . . . Garrison . | . . . . Intercept . | . . . . Searches Triggered . | . . . . Construction Impeded . | . . . . Haulers Reinforced . | . . . . Active Scanning Responses . | . . . . Cargo Convoy Interrupts . | . . . . Stealth | -11 -10 -9 -8 --------- Run | Yrd Mat Mat Mat Distress Signals 4 | . . . 4 Communications Jammed . | . . . . Distress Signals . | . . . . Times Spotted 57 | . 21 20 16 Peak Tracking Total 13 | . 5 5 13 Tactical Retreats 2 | . 1 . 1 Traps | -11 -10 -9 -8 ------- Run | Yrd Mat Mat Mat Traps Triggered 7 | . 5 1 1 Indirectly . | . . . . Trap Hack Attempts . | . . . . Triggered . | . . . . Disarmed . | . . . . Reprogrammed . | . . . . Reused . | . . . . Traps Extracted . | . . . . Installed . | . . . . Triggered . | . . . . Machines | -11 -10 -9 -8 ---------- Run | Yrd Mat Mat Mat Machines Disabled 2 | . 1 . 1 Max in Single Turn 1 | . 1 . 1 Machines Repaired . | . . . . Machines Dismantled . | . . . . Machines Sabotaged . | . . . . Overloaded Fab Kills . | . . . . Hacking | -11 -10 -9 -8 --------- Run | Yrd Mat Mat Mat Machines Accessed 8 | . 6 2 . Terminals 6 | . 5 1 . Fabricators . | . . . . Repair Stations 1 | . 1 . . Recycling Units 1 | . . 1 . Scanalyzers . | . . . . Garrison Access . | . . . . Total Hacks 17 | . 13 4 . Successful 6 | . 3 3 . Failed 11 | . 10 1 . Catastrophic 3 | . 3 . . Database Lockouts . | . . . . Manual 5 | . 3 2 . Terminals 12 | . 9 3 . Fabricators . | . . . . Repair Stations 4 | . 4 . . Recycling Units 1 | . . 1 . Scanalyzers . | . . . . Garrison Access . | . . . . Terminal Hacks 2 | . . 2 . Record 2 | . . 2 . Fabricator Hacks . | . . . . Repair Station Hacks 3 | . 3 . . Scan Component 2 | . 2 . . Repair 1 | . 1 . . Recycling Unit Hacks 1 | . . 1 . Retrieve Components 1 | . . 1 . Scanalyzer . | . . . . Garrison Access Hacks . | . . . . Unauthorized Hacks . | . . . . Terminals . | . . . . Fabricators . | . . . . Repair Stations . | . . . . Recycling Units . | . . . . Scanalyzers . | . . . . Garrison Access . | . . . . Data Cores Recovered . | . . . . Used . | . . . . Hacking Detections 7 | . 6 1 . Full Trace Events 1 | . 1 . . Feedback Events . | . . . . Feedback Blocked . | . . . . Robot Schematics Acquired . | . . . . Robots Built . | . . . . Authchips . | . . . . Time . | . . . . Total Robot Build Rating . | . . . . Part Schematics Acquired . | . . . . Parts Built . | . . . . Authchips . | . . . . Time . | . . . . Total Part Build Rating . | . . . . Part Studies Acquired . | . . . . Parts Repaired 1 | . 1 . . Time 26 | . 26 . . Parts Recycled . | . . . . Recycled Matter . | . . . . Retrieved Matter . | . . . . Retrieved Components 10 | . . 10 . Parts Scanalyzed . | . . . . Part Schematics Acquired . | . . . . Parts Damaged . | . . . . Bothacking | -11 -10 -9 -8 ------------ Run | Yrd Mat Mat Mat Used RIF Installer . | . . . . Robots Hacked . | . . . . Non-combat . | . . . . Combat . | . . . . Robot Hacks Applied . | . . . . Relay Couplers Released . | . . . . Fabnet Peak Effective % . | . . . . Robots Rewired . | . . . . Allies Hacked . | . . . . Hacks Repelled . | . . . . Allies | -11 -10 -9 -8 -------- Run | Yrd Mat Mat Mat Total Allies . | . . . . Largest Group . | . . . . Highest-Rated Group . | . . . . Highest-Rated Ally . | . . . . Total Orders . | . . . . Ally Attacks . | . . . . Total Damage . | . . . . Kills . | . . . . Allies Corrupted . | . . . . Allies Melted . | . . . . Intel | -11 -10 -9 -8 ------- Run | Yrd Mat Mat Mat Active Infowar (turns) . | . . . . Robot Analysis Total . | . . . . Derelict Logs Recovered . | . . . . Drone Launches . | . . . . Drone Recoveries . | . . . . Exploration | -11 -10 -9 -8 ------------- Run | Yrd Mat Mat Mat Turns Passed 3275 | 92 1894 1103 186 Spaces Moved 2033 | 75 1298 552 108 Core 15 | 13 2 . . Treads . | . . . . Legs 2002 | 62 1296 552 92 Wheels 11 | . . . 11 Hover . | . . . . Flight 5 | . . . 5 Fastest Speed 34 | 50 120 120 34 Average Speed 137 | 107 122 179 117 Slowest Speed 360 | 120 200 190 360 Overloaded Moves . | . . . . Propulsion Burnouts . | . . . . Robots Hopped . | . . . . Potential Cave-ins . | . . . . Cave-ins Triggered . | . . . . Exploration Rate (%) 38 | 5 99 30 20 Regions Visited 3 Branch Regions . Pre-discovered Areas . | . . . . Known Exits Taken . | . . . . Unknown Exits Taken 3 | 1 1 1 . Scrap Searched . | . . . . Spaces Dug . | . . . . Terrain Destroyed 22 | . . . 22 Melee . | . . . . Projectile . | . . . . AOE 22 | . . . 22 Terrain Rammed . | . . . . Walls Destroyed . | . . . . Machines Disabled . | . . . . Actions | -11 -10 -9 -8 --------- Run | Yrd Mat Mat Mat Total 2297 | 83 1459 613 142 Wait 49 | . 44 5 . Move 2030 | 74 1297 551 108 Hop . | . . . . Pick Up 22 | 3 10 6 3 Fast Attach 20 | 6 7 2 5 Attach 13 | . 4 4 5 Detach 8 | . 2 3 3 Swap 5 | . 2 3 . Drop 15 | . 5 8 2 Fire 135 | . 88 31 16 Melee . | . . . . Ram . | . . . . Kick . | . . . . Crush . | . . . . Escape Stasis . | . . . . Rewire . | . . . . Trap . | . . . . Miscellaneous . | . . . . Route ------- -11/Scrapyard -10/Materials (discovered 5 exits: *Mat x3 / [*Min] / [*Sub]) -9/Materials -8/Materials History --------- Turn | Location | Event 9 | -11/Scrapyard | Discovered new exit (range 16) 93 | -11/Scrapyard | Entered Materials 94 | -10/Materials | Met a group of wandering Federalists 187 | -10/Materials | Discovered new exit (range 11) 204 | -10/Materials | Discovered new exit (range 3) 302 | -10/Materials | Build established: Mutant 894 | -10/Materials | Discovered new exit (range 8) 1068 | -10/Materials | Repaired Assault Rifle 1164 | -10/Materials | Discovered new exit (range 12) 1352 | -10/Materials | Core integrity fell below 50% 1400 | -10/Materials | Lost 5 parts (1p1n3w) 1579 | -10/Materials | Discovered new exit (range 13) 1987 | -10/Materials | Entered another Materials area 1987 | -9/Materials | Evolved 2 slots: Utility x1, Weapon x1 2494 | -9/Materials | Build established: Scavenger-Gunner 2978 | -9/Materials | Discovered new exit (range 14) 3090 | -9/Materials | Entered another Materials area 3090 | -8/Materials | Evolved 2 slots: Propulsion x1, Weapon x1 3258 | -8/Materials | Core integrity fell below 50% 3262 | -8/Materials | Core integrity fell below 20% 3276 | -8/Materials | Destroyed by G-47 Trooper with Particle Gun Last Messages --------------- 03257_ Critical hit (Burn: +37). 03257_ Penetrated by Slug. 03258_ Mni. Grenade Launcher destroyed. 03260_ Penetrated by Slug. 03262_ R-06 Scavenger collects Flight Unit. 03262_ Acquired Lgt. Cannon. 03263_ G-47 Trooper destroyed. 03263_ K-01 Serf collects debris. 03264_ G-47 Trooper knocked back. 03266_ Penetrated by Slug. 03266_ Lgt. Cannon destroyed. 03267_ R-06 Scavenger collects Lgt. Assault Rifle. 03267_ K-01 Serf collects debris. 03268_ Acquired 23 matter. 03271_ K-01 Serf collects debris. 03271_ U-05 Engineer builds a Wall. 03275_ K-01 Serf collects debris. 03275_ U-05 Engineer lays Concrete. 03275_ Acquired Assault Rifle. Map ----- +----------------------------------------------------+ | ?????????????????????? # #?????????????????? | | ????????????????????? #![! ###???????????????? | | ????????????????????? #![! ????????????????? | | ???????????????????? #![! #?????????????????? | | ????????????????????! # #?????????????????? | | ???????????????????? # #?????????????????? | | ???????????????????? # #?????????????????? | | ???????????????????? # #?????????????????? | | ???????????T???###### ## ! #?????????????????? | | ??????????? ???# # #?????????????????? | | ??????????? ???# = % #####?????????????? | | ??########? ???# *= % ??????????? | | ??# / #? ???#"" [* ?????????? | | ### #? ???#"" %%[#u ??????????? | | # ## #??#"" # ??????????? | | # """## #?## # ???????????? | | # """## #?# gg # ???????????? | | # """## #?# h# ###########???????????? | | # ## #?# g # #####?????????????????? | | " # ## #?# g //#?????????????????? | | " #+##+#### ####% //#?????????????????? | | " # [[#?????????????????? | | + k [[#?????????????????? | | " # //#?????????????????? | | " ### //#?????????????????? | | " #?# ] @[#####?????????????????? | | #?# """" """" [[#?????????????????????? | | ##### """" """" ????????????????????? | | """" """" ??????????????????? | | ?????????????????? | | = ### ????????????????? | | ##+######" "####+######## ##??# ???????????????? | | ?????????"G"#???????????# #???? #??????????????? | | ????????? ? #???????????#+#????? #??????????????? | | ????????????????????????????????? #??????????????? | | ??????????????????????????????????#??????????????? | | ?????????????????????????????????????????????????? | | ?????????????????????????????????????????????????? | | ?????????????????????????????????????????????????? | | ?????????????????????????????????????????????????? | | ?????????????????????????????????????????????????? | | ?????????????????????????????????????????????????? | | ?????????????????????????????????????????????????? | | ?????????????????????????????????????????????????? | | ?????????????????????????????????????????????????? | | ?????????????????????????????????????????????????? | | ?????????????????????????????????????????????????? | | ?????????????????????????????????????????????????? | | ?????????????????????????????????????????????????? | | ?????????????????????????????????????????????????? | +----------------------------------------------------+ Best States ------------- Heat Dissipation 31 Energy Generation 10 Energy Capacity 250 Matter Stores 300 Matter Capacity 300 Sight Range 16 Terrain Scan Density 10 Armor Coverage 150 Evasion (%) 55 Targeting Accuracy 5 Item Schematics ----------------- None Robot Schematics ------------------ None Fabricated ------------ Nothing Repaired ---------- Assault Rifle | 54% | -10/Materials Studied --------- None Alien Tech Used ----------------- None Achievements -------------- Gunslinger Challenges ------------ None Game ------ Seed FusionXenonMonowheel Manual? 0 Play Time 00:34:03 Cumulative 21.2 hours Start 2026.07.17 @ 18:59:26 End 2026.07.17 @ 19:35:15 Sessions 1 Manual Loads 0 Difficulty Rogue Special Mode None Game No. 36 Rogue 36 Adventurer 0 Explorer 0 Win Type - Total 0 Types 0/0/0/0/0/0/0/0/0/0 Lore% 7 Gallery% 16 Achievement% 14 Wizard Run 0 Options --------- Layout 1 ASCII 0 Keyboard 1 Movement Arrows Keybinds 0 Fullscreen 1 Font 24/Smallcaps Map View 50x35 Zoom Use 0% Tactical HUD 1 Map Filters NONE Filters NONE Steam 1 RUN: 81d11b14-58c5-48b1-9ac9-9754b1716547